Cogmind - Beta 9.6 @@@ ROGUE MODE // 2020.06.16 @ 17:25:45 Player: Sophie Result: Destroyed by G-34 Mercenary with Small Laser Performance ------------- Evolutions (1) 500 Regions Visited (3) 600 Robots Destroyed (63) 315 Value Destroyed (1448) 1448 Prototype IDs (7) 140 Alien Tech Used (0) 0 Bonus (48) 48 TOTAL SCORE: 3051 Bonus ------- High Alert Combat Kills 48 Cogmind --------- Core Integrity 0/400 Matter 300/300 Energy 250/250 System Corruption 0% Temperature Cool (6) Movement Rolling (80) Location -9/Materials Parts ------- > --- POWER (1) -------- Ion Engine > --- PROPULSION (3) --- Wheel Wheel > --- UTILITY (3) ------ Signal Interpreter Improved Targeting Computer > --- WEAPON (2) ------- Heavy Assault Rifle Heavy Assault Rifle > --- INVENTORY (4) ---- Heat Sink ECM Suite Light Armor Plating Peak State ------------ > --- POWER ------------ Improved Ion Engine > --- PROPULSION ------- Improved Flight Unit Improved Flight Unit Improved Flight Unit > --- UTILITY ---------- Signal Interpreter Improved Terrain Scanner ECM Suite > --- WEAPON ----------- Light Assault Rifle Heavy Assault Rifle > --- INVENTORY -------- Aluminum Leg Flight Unit Heat Sink Light Armor Plating [Rating: 18] Favorites ----------- Power Light Ion Engine Engine Light Ion Engine Propulsion Light Treads Treads Light Treads Leg Aluminum Leg Wheel Wheel Hover Unit Hover Unit Flight Unit VTOL Module Utility Signal Interpreter Device Improved Terrain Scanner Storage Large Storage Unit Processor Signal Interpreter Weapon Autogun Energy Gun Improved EM Shotgun Ballistic Gun Autogun Build | -11 -10 -10 -9 ------- Run | Scr Mat Min Mat Slots Evolved 2 | . . . 2 Power . | . . . . Propulsion 1 | . . . 1 Utility 1 | . . . 1 Weapon . | . . . . Parts Attached 77 | 7 26 2 42 Power 14 | 2 5 2 5 Engine 14 | 2 5 2 5 Core . | . . . . Reactor . | . . . . Propulsion 30 | 2 9 . 19 Treads 7 | . . . 7 Leg 5 | 2 2 . 1 Wheel 2 | . . . 2 Hover 5 | . 2 . 3 Flight 11 | . 5 . 6 Utility 13 | 1 7 . 5 Device 8 | . 4 . 4 Storage 3 | 1 2 . . Processor 2 | . 1 . 1 Hackware . | . . . . Protection . | . . . . Artifact . | . . . . Weapon 20 | 2 5 . 13 Energy Gun 1 | . . . 1 Energy Cannon . | . . . . Ballistic Gun 19 | 2 5 . 12 Ballistic Cannon . | . . . . Launcher . | . . . . Special Weapon . | . . . . Impact Weapon . | . . . . Slashing Weapon . | . . . . Piercing Weapon . | . . . . Special Melee Weapon . | . . . . Unidentified Prototypes . | . . . . Parts Lost 18 | . 3 4 11 Power 2 | . . 1 1 Propulsion 9 | . 2 1 6 Utility 2 | . . . 2 Weapon 5 | . 1 2 2 Highest Loss Streak 6 | . 1 4 6 Average Slot Usage (%) 87 | . 92 95 84 Engine 11 | . 14 12 10 Treads 11 | . . . 18 Leg 2 | . 7 . . Hover 3 | . 8 . . Flight 4 | . 8 28 . Device 19 | . 18 14 20 Processor 10 | . 5 14 12 Ballistic Gun 23 | . 27 24 20 Naked Turns . | . . . . Heaviest Build 41 | 13 41 12 15 Greatest Support 60 | 20 20 10 60 Greatest Overweight (x) 4 | 1 2 1 4 Average Overweight (x) . | . . . . Largest Inventory Capacity 16 | 6 16 4 4 Average Capacity 4 | 5 4 4 4 Most Carried 4 | 2 4 4 4 Average Carried 3 | . 3 4 2 Final Capacity 6 | 6 4 4 4 Final Carried 4 | 2 4 4 3 Class Distribution -------------------- 55% | Scavenger-Mutant 44% | Mutant Dominant Class ---------------- Mutant | -10/Materials Mutant | -10/Mines Scavenger-Mutant | -9/Materials Resources | -11 -10 -10 -9 ----------- Run | Scr Mat Min Mat Matter Collected 1992 | 269 579 56 1088 Remotely . | . . . . Salvage Created 2024 | . 567 56 1401 Parts 138 | . 43 4 91 Haulers Intercepted 1 | . . . 1 Recyclers Shooed 1 | . . . 1 Parts Field Recycled . | . . . . Retrieved Matter . | . . . . Parts Self-Destructed . | . . . . Prevented . | . . . . Kills | -11 -10 -10 -9 ------- Run | Scr Mat Min Mat Combat Hostiles Destroyed 47 | . 15 2 30 Guns 46 | . 15 2 29 AOE 1 | . . . 1 Classes Destroyed 10 | . 5 . 5 Worker 3 | . 2 . 1 Builder 2 | . . . 2 Tunneler 1 | . 1 . . Hauler 1 | . . . 1 Recycler 2 | . . . 2 Operator 1 | . . . 1 Watcher 6 | . 3 . 3 Swarmer 18 | . 6 . 12 Grunt 19 | . 9 2 8 Sentry 10 | . . . 10 Best Kill Streak 10 | . 5 1 10 Combat Bots Only 10 | . 4 1 10 Max Kills in Single Turn 2 | . 2 1 2 Gunslinging 1 | . 1 . 1 Exploded 1 | . . . 1 Melee . | . . . . Uniques/NPCs Destroyed . | . . . . Combat | -11 -10 -10 -9 -------- Run | Scr Mat Min Mat Damage Taken 2933 | . 761 379 1793 Core 596 | . 132 54 410 Absorbed by Shields . | . . . . Core Remaining (%) 62 | 100 . 25 . Volleys Fired 198 | . 63 10 125 Largest 2 | . 2 2 2 Hottest 68 | . 46 46 68 Shots Fired 345 | . 114 20 211 Gun 345 | . 114 20 211 Cannon . | . . . . Launcher . | . . . . Special . | . . . . Kinetic 341 | . 114 20 207 Thermal . | . . . . Explosive . | . . . . Electromagnetic 4 | . . . 4 Robot Hit Streak 11 | . 11 5 9 Robot Miss Streak 5 | . 5 4 5 Penetration Max . | . . . . Secondary Targets 6 | . 3 . 3 Max Gunslinging Chain 1 | . 1 . 1 Shots Hit Robots 216 | . 77 14 125 Core Hits 97 | . 33 7 57 Critical Hits 2 | . 1 . 1 Critical Kills 1 | . . . 1 Critical Parts Destroyed 1 | . 1 . . Melee Attacks . | . . . . Impact . | . . . . Slashing . | . . . . Piercing . | . . . . Sneak Attacks . | . . . . Combat Hostiles . | . . . . Follow-up Attacks . | . . . . Damage Inflicted 2914 | . 933 171 1810 Guns 2834 | . 917 171 1746 Cannons . | . . . . Explosions 64 | . . . 64 Melee . | . . . . Ramming 16 | . 16 . . Kinetic 2825 | . 917 171 1737 Thermal 64 | . . . 64 Explosive . | . . . . Electromagnetic 9 | . . . 9 Impact . | . . . . Slashing . | . . . . Piercing . | . . . . Highest Corruption . | . . . . Average Corruption . | . . . . Corruption Purged . | . . . . Overload Shots . | . . . . Overflow Damage . | . . . . Projectiles . | . . . . Explosions . | . . . . Melee . | . . . . Knockbacks 1 | . 1 . . Impact 1 | . 1 . . Kinetic . | . . . . Secondary . | . . . . Self-Inflicted Damage 7 | . 7 . . Shots . | . . . . Rammed 2 | . 2 . . Targets Rammed 2 | . 2 . . Kicked . | . . . . Crushed . | . . . . Highest Temperature 28 | . 20 15 28 Average Temperature 6 | . 6 7 4 Received Heat Transfer 747 | . 330 72 345 Siege Activations . | . . . . Robots Corrupted . | . . . . Combat Hostiles . | . . . . Parts Fried . | . . . . Impact Corruptions . | . . . . Robots Melted . | . . . . Combat Hostiles . | . . . . Parts Melted . | . . . . Heat Transferred 50 | . . . 50 Parts Sabotaged . | . . . . Parts Stolen . | . . . . Parts Stripped . | . . . . Power Chain Reactions 1 | . . . 1 Missiles Intercepted . | . . . . Alert | -11 -10 -10 -9 ------- Run | Scr Mat Min Mat Peak Influence 469 | . 241 96 469 Average Influence 179 | . 80 85 244 Maximum Alert Level 2 | . 1 . 2 Low Security (%) 61 | 100 97 100 38 Level 1 31 | . 2 . 49 Level 2 7 | . . . 12 Level 3 . | . . . . Level 4 . | . . . . Level 5 . | . . . . High Security . | . . . . Max Security . | . . . . Squads Dispatched 7 | . 2 . 5 Investigation 4 | . 2 . 2 Extermination . | . . . . Reinforcement 3 | . . . 3 Assault . | . . . . Garrison . | . . . . Intercept . | . . . . Construction Impeded . | . . . . Haulers Reinforced . | . . . . Stealth | -11 -10 -10 -9 --------- Run | Scr Mat Min Mat Distress Signals 3 | . . . 3 Communications Jammed . | . . . . Distress Signals . | . . . . Times Spotted 90 | . 22 17 51 Peak Tracking Total 14 | . 5 14 4 Tactical Retreats 6 | . . 1 5 Traps | -11 -10 -10 -9 ------- Run | Scr Mat Min Mat Traps Triggered 6 | . 2 . 4 Indirectly . | . . . . Trap Hack Attempts . | . . . . Triggered . | . . . . Disarmed 4 | . 4 . . Reprogrammed . | . . . . Reused . | . . . . Traps Extracted . | . . . . Installed . | . . . . Triggered . | . . . . Machines | -11 -10 -10 -9 ---------- Run | Scr Mat Min Mat Machines Disabled . | . . . . Max in Single Turn . | . . . . Machines Sabotaged . | . . . . Garrisons Compromised . | . . . . Overloaded Fab Kills . | . . . . Fab Network Shutdowns . | . . . . Hacking | -11 -10 -10 -9 --------- Run | Scr Mat Min Mat Machines Accessed 13 | . 8 . 5 Terminals 13 | . 8 . 5 Fabricators . | . . . . Repair Stations . | . . . . Recycling Units . | . . . . Scanalyzers . | . . . . Garrison Access . | . . . . Total Hacks 42 | . 28 . 14 Successful 21 | . 12 . 9 Failed 21 | . 16 . 5 Catastrophic 3 | . 2 . 1 Database Lockouts . | . . . . Manual . | . . . . Terminals 42 | . 28 . 14 Fabricators . | . . . . Repair Stations . | . . . . Recycling Units . | . . . . Scanalyzers . | . . . . Garrison Access . | . . . . Terminal Hacks 21 | . 12 . 9 Record 2 | . 2 . . Robot Analysis 2 | . 1 . 1 Prototype ID Bank 4 | . 2 . 2 Level Access Points 1 | . 1 . . Branch Access Points 1 | . . . 1 Emergency Access Points 1 | . . . 1 Alert Level 1 | . 1 . . Unreport Threat 1 | . 1 . . Disarm Traps 1 | . 1 . . Maintenance Status 1 | . . . 1 Recall Investigation 1 | . . . 1 Recall Reinforcements 1 | . 1 . . Registered Components 2 | . 1 . 1 Zone Layout 2 | . 1 . 1 Fabricator Hacks . | . . . . Repair Station Hacks . | . . . . Recycling Unit Hacks . | . . . . Scanalyzer . | . . . . Garrison Access Hacks . | . . . . Unauthorized Hacks . | . . . . Terminals . | . . . . Fabricators . | . . . . Repair Stations . | . . . . Recycling Units . | . . . . Scanalyzers . | . . . . Garrison Access . | . . . . Data Cores Recovered 1 | . . . 1 Used . | . . . . Hacking Detections 12 | . 8 . 4 Full Trace Events . | . . . . Feedback Events . | . . . . Feedback Blocked . | . . . . Robot Schematics Acquired . | . . . . Robots Built . | . . . . Matter . | . . . . Time . | . . . . Total Robot Build Rating . | . . . . Part Schematics Acquired . | . . . . Parts Built . | . . . . Matter . | . . . . Time . | . . . . Total Part Build Rating . | . . . . Parts Repaired . | . . . . Time . | . . . . Parts Recycled . | . . . . Recycled Matter . | . . . . Retrieved Matter . | . . . . Retrieved Components . | . . . . Parts Scanalyzed . | . . . . Part Schematics Acquired . | . . . . Parts Damaged . | . . . . Bothacking | -11 -10 -10 -9 ------------ Run | Scr Mat Min Mat Used RIF Installer . | . . . . Robots Hacked . | . . . . Non-combat . | . . . . Combat . | . . . . Robot Hacks Applied . | . . . . Relay Couplers Released . | . . . . Robots Rewired . | . . . . Allies Hacked . | . . . . Hacks Repelled . | . . . . Allies | -11 -10 -10 -9 -------- Run | Scr Mat Min Mat Total Allies . | . . . . Largest Group . | . . . . Highest-Rated Group . | . . . . Highest-Rated Ally . | . . . . Total Orders . | . . . . Ally Attacks . | . . . . Total Damage . | . . . . Kills . | . . . . Allies Corrupted . | . . . . Allies Melted . | . . . . Intel | -11 -10 -10 -9 ------- Run | Scr Mat Min Mat Robot Analysis Total 2 | . 1 . 1 Derelict Logs Recovered 1 | . . 1 . Drone Launches . | . . . . Drone Recoveries . | . . . . Exploration | -11 -10 -10 -9 ------------- Run | Scr Mat Min Mat Turns Passed 2824 | 66 942 90 1726 Spaces Moved 1907 | 50 860 132 865 Core 40 | 7 10 . 23 Treads 728 | . . . 728 Legs 165 | 43 122 . . Wheels 45 | . . . 45 Hover 386 | . 343 . 43 Flight 543 | . 385 132 26 Fastest Speed 29 | 50 37 37 29 Average Speed 108 | 111 76 41 150 Slowest Speed 280 | 120 180 117 280 Overloaded Moves . | . . . . Propulsion Burnouts . | . . . . Robots Hopped 5 | . 4 . 1 Cave-ins Triggered . | . . . . Exploration Rate (%) 51 | 4 99 39 63 Regions Visited 3 Branch Regions 1 Pre-discovered Areas . | . . . . Known Exits Taken 2 | . 1 1 . Unknown Exits Taken 1 | 1 . . . Scrap Searched 1 | . . 1 . Spaces Dug . | . . . . Terrain Destroyed 1 | . . . 1 Melee . | . . . . Projectile . | . . . . AOE 1 | . . . 1 Actions | -11 -10 -10 -9 --------- Run | Scr Mat Min Mat Total 2337 | 57 1036 147 1097 Wait 76 | . 47 . 29 Move 1894 | 49 851 131 863 Hop 5 | . 4 . 1 Pick Up 20 | 1 13 1 5 Fast Attach 35 | 6 7 1 21 Attach 7 | . 1 . 6 Detach 7 | . 2 . 5 Swap 35 | 1 18 1 15 Drop 58 | . 28 3 27 Fire 198 | . 63 10 125 Melee . | . . . . Ram 2 | . 2 . . Kick . | . . . . Crush . | . . . . Escape Stasis . | . . . . Rewire . | . . . . Trap . | . . . . Miscellaneous . | . . . . Route ------- -11/Scrapyard -10/Materials (discovered 5 exits: *Mat x3 / *Min x2) -10/Mines -9/Materials (discovered 4 exits: *Mat x2 / *Min x2) History --------- Turn | Location | Event 6 | -11/Scrapyard | Discovered new exit (range 15) 67 | -11/Scrapyard | Entered Materials 354 | -10/Materials | Build established: Mutant 382 | -10/Materials | Discovered new exit (range 15) 445 | -10/Materials | Discovered new exit (range 8) 604 | -10/Materials | Discovered new exit (range 9) 704 | -10/Materials | Core integrity fell below 50% 724 | -10/Materials | Discovered new exit (range 4) 929 | -10/Materials | Identified exit to Materials 1009 | -10/Materials | Identified exit to Mines 1009 | -10/Materials | Entered Mines 1064 | -10/Mines | Assembled infested the area 1077 | -10/Mines | Learned Materials security intel 1093 | -10/Mines | Discovered exit to Materials (range 9) 1099 | -10/Mines | Entered Materials 1099 | -9/Materials | Evolved 2 slots: Propulsion x1, Utility x1 1118 | -9/Materials | Identified exit to Mines 1154 | -9/Materials | Lost 6 parts (1p2n1u2w) 1472 | -9/Materials | Build established: Scavenger-Mutant 1868 | -9/Materials | Destroyed 10 combat bots 2054 | -9/Materials | Core integrity fell below 50% 2179 | -9/Materials | Discovered new exit (range 16) 2657 | -9/Materials | Core integrity fell below 20% 2817 | -9/Materials | Discovered new exit (range 8) 2822 | -9/Materials | Identified exit to Materials 2825 | -9/Materials | Destroyed by G-34 Mercenary with Small Laser Last Messages --------------- Acquired 6 matter. G-34 Mercenary destroyed. Acquired 6 matter. K-01 Serf collects debris. K-01 Serf destroyed. Acquired 6 matter. K-01 Serf cleans the Matter Filter. U-05 Engineer builds a Door. Acquired Wheel. [Achievement: Universal Adapter] Acquired Wheel. Acquired 12 matter. Extracted 8 matter. K-01 Serf collects debris. EXIT=FOUND Triggered Alarm Trap. An alarm sounds. ALERT: Alarm triggered, dispatching investigation squad. Imp. Terrain Scanner destroyed. EXIT=IDENTIFIED: MATERIALS Map ----- +----------------------------------------------------+ | | | | | | | | | | | | | | | | | | | | | | | | | | | ?????????????????????############??????????#?#? | | ????????????????####### #?????????##### | | ????????????????? ! # ! #??????????# | | ????????????????? # #??????#?#?# | | ?????????????????? # """ """ #?????????## | | ?????????????????? # """ """ ############ | | ??????????????????? # """ """ + [* % # | | ??????????????????? # ##########%# | | ???????????????????? # #????????#!/ | | ???????????????????? #####+#####????????# # | | ???????????????######+### ############ #### | | ?????????????????# g | | ?????????????????# < @ g> | | ??????????#??????# | | ?????????????????####+### ###+######## #### | | ????????????????????????#######?? ?? ? ?##+#### | | ??????????#??????????? ??????#? ? "?????# | | ????????#?????????????????????????"?? ??# """"" | | ?????????##???????????????????? ??""? ?# """"" | | ????????#?##??????????????????#?? ??????# """"" | | ??????????????????????????????#????"????# """"" | | ?#????###########???????????????????????# """"" | | ??????# ## "T" #?????????"?"???# """"" | | ??????# T #############???????????# """"" | | ??????# """ # # #?##########?# * | | ?#????# """ + # #?# #######+# | | ?????##| """ # # " #?#""" # ! | | ?#????# # + T #?#""" = # | | #?????# # # " #?#""" # | | ????###! # # #?# # ##### | | ?#????####+###### ########?#""" # #? ? | | ????#?#??# ! #????????#""" # #???? | | ???#?????# = #??#????##""" # #???? | | #?#?????## #?#??????# + #???? | | ########## #?#??????########## #???? | | # # #??#??????#??????## ##??? | | # # [#??##??##?#??????# #### | +----------------------------------------------------+ Best States ------------- Heat Dissipation 38 Energy Generation 12 Energy Capacity 265 Matter Stores 300 Matter Capacity 300 Sight Range 16 Robot Scan Range 10 Terrain Scan Range 16 Terrain Scan Density 10 ECM Strength 1 Evasion (%) 62 Targeting Accuracy 6 Recoil Reduction 3 Item Schematics ----------------- None Robot Schematics ------------------ None Fabricated ------------ Nothing Alien Tech Used ----------------- None Achievements -------------- Universal Adapter Challenges ------------ None Game ------ Seed DamperCoreDissipator Manual? 0 Play Time 00:46:27 Cumulative 33.0 hours Start 2020.05.23 @ 05:23:45 End 2020.06.16 @ 17:25:45 Sessions 4 Manual Loads 0 Difficulty Rogue Special Mode None Game No. 18 Rogue 11 Adventurer 0 Explorer 7 Win Type - Total 0 Types 0/0/0/0/0/0/0 Lore% 31 Gallery% 37 Achievement% 29 Wizard Run 0 Options --------- ASCII 0 Keyboard 0 Movement Numpad Keybinds 0 Fullscreen 0 Font 16/Cog Map View 76x50 Tactical HUD 0 Map Filters NONE Filters NONE Steam 1 RUN: ed4fc292-a4fb-4428-9da6-849124ad591a